bitfinex/quotes_SOLUSD_20250420
["timestamp","ask_amount","ask_price","bid_price","bid_amount"]
[1745171809019,10.99789749,136.08,136.07,14.92]
[1745171811914,10.99789749,136.09,136.07,14.92]
[1745171813118,10.99789749,136.08,136.07,14.92]
[1745171813905,10.99789749,136.08,136.07,266.58]
[1745171816218,10.99789749,136.09,136.07,266.58]
[1745171817619,10.99789749,136.1,136.07,266.58]
[1745171818201,91.79789749,136.12,136.07,266.58]
[1745171818913,10.99789749,136.11,136.07,266.58]
[1745171819819,10.99789749,136.1,136.07,266.58]
[1745171821021,10.99789749,136.09,136.07,266.58]
[1745171828133,10.99789749,136.1,136.07,266.58]
[1745171830711,10.99789749,136.08,136.07,266.58]
[1745171848146,18.64964886,136.11,136.07,266.58]
[1745171848346,10.99789749,136.1,136.07,266.58]
[1745171848648,10.99789749,136.09,136.07,266.58]
[1745171848843,10.99789749,136.1,136.07,266.58]
[1745171849053,80.8,136.12,136.07,268.1358]
[1745171849233,43.99158996,136.16,136.07,268.1358]
[1745171849234,10.99789749,136.13,136.07,268.1358]
[1745171849633,10.99789749,136.12,136.07,268.1358]
[1745171850632,18.64964886,136.15,136.07,268.1358]
[1745171850831,10.99789749,136.12,136.07,268.1358]
[1745171853861,10.99789749,136.11,136.07,268.1358]
[1745171855754,10.99789749,136.1,136.07,268.1358]
[1745171856752,18.64964886,136.15,136.07,268.1358]
[1745171856753,10.99789749,136.11,136.07,268.1358]
[1745171865248,10.99789749,136.1,136.07,268.1358]
[1745171866661,10.99789749,136.12,136.07,268.1358]
[1745171866864,18.64964886,136.15,136.07,268.1358]
[1745171867066,10.99789749,136.12,136.07,268.1358]
[1745171867962,10.99789749,136.12,136.08,26.0]
[1745171872469,10.99789749,136.12,136.09,14.64]
[1745171874175,10.99789749,136.11,136.09,14.64]
[1745171877177,10.99789749,136.11,136.1,251.6]
[1745171883968,10.99789749,136.11,136.1,251.62]
[1745171884279,10.99789749,136.11,136.09,14.64]
[1745171884455,10.99789749,136.1,136.09,14.64]
[1745171885183,10.99789749,136.1,136.09,266.26]
[1745171888488,10.99789749,136.1,136.09,251.62]
[1745171888778,10.99789749,136.1,136.09,266.26]
[1745171890375,10.99789749,136.1,136.03,26.063]
[1745171890579,10.99789749,136.05,136.03,26.063]
[1745171891566,10.99789749,136.06,136.03,26.063]
[1745171892288,10.99789749,136.05,136.03,26.063]
[1745171895290,10.99789749,136.05,136.04,266.18]
[1745171896290,10.99789749,136.05,136.04,251.68]
[1745171896587,10.99789749,136.05,136.04,266.18]
[1745171899990,10.99789749,136.05,136.04,251.68]
[1745171900175,10.99789749,136.05,136.04,266.2]
[1745171904770,10.99789749,136.06,136.04,266.2]
[1745171904998,10.99789749,136.07,136.04,266.2]
[1745171905987,10.99789749,136.07,136.05,14.52]
[1745171906370,10.99789749,136.07,136.04,251.68]
[1745171906573,10.99789749,136.07,136.05,14.52]
[1745171906890,10.99789749,136.07,136.04,251.68]
[1745171907087,10.99789749,136.07,136.06,14.52]
[1745171908274,10.99789749,136.07,136.04,251.68]
[1745171908474,10.99789749,136.07,136.05,14.52]
[1745171908772,10.99789749,136.06,136.05,14.52]
[1745171917006,10.99789749,136.06,136.04,251.68]
[1745171917204,10.99789749,136.06,136.05,14.52]
[1745171919789,10.99789749,136.06,136.05,266.22]
[1745171939326,10.99789749,136.08,136.05,266.22]
[1745171939531,80.8,136.12,136.05,267.7582]
[1745171939707,80.8,136.12,136.08,26.0]
[1745171939708,10.99789749,136.12,136.08,26.0]
[1745171939907,10.99789749,136.13,136.08,26.0]
[1745171941930,10.99789749,136.12,136.08,26.0]
[1745171944305,10.99789749,136.14,136.08,26.0]
[1745171944507,10.99789749,136.15,136.09,7.8303]
[1745171944707,10.99789749,136.15,136.1,14.4]
[1745171945436,10.99789749,136.14,136.1,14.4]
[1745171946946,0.063,136.17,136.1,14.4]
[1745171947244,10.99789749,136.15,136.1,14.4]
[1745171947609,10.99789749,136.14,136.1,14.4]
[1745171953959,10.99789749,136.14,136.11,251.6]
[1745171962353,0.063,136.17,136.11,251.6]
[1745171962553,10.99789749,136.14,136.11,251.6]
[1745171963556,10.99789749,136.14,136.12,14.3]
[1745171966352,10.99789749,136.13,136.12,14.3]
[1745171969648,29.64754635,136.13,136.12,14.3]
[1745171969853,31.17424635,136.13,136.12,14.3]
[1745171970032,31.17424635,136.13,136.05,0.03]
[1745171970234,10.99789749,136.08,136.05,0.03]
[1745171971666,10.99789749,136.09,136.05,0.03]
[1745171975169,10.99789749,136.08,136.06,265.92]
[1745171986156,10.99789749,136.09,136.06,265.92]
[1745171986359,10.99789749,136.1,136.06,265.92]
[1745171986665,10.99789749,136.09,136.06,265.92]
[1745171987573,10.99789749,136.1,136.06,265.92]
[1745171993977,10.99789749,136.09,136.06,265.92]
[1745171996979,10.99789749,136.08,136.06,265.92]
[1745172000191,10.99789749,136.07,136.06,265.92]
[1745172002479,10.99789749,136.08,136.06,265.92]
[1745172002869,10.99789749,136.09,136.06,265.92]
[1745172003085,10.99789749,136.08,136.06,265.92]
[1745172003491,10.99789749,136.07,136.06,265.92]
[1745172005293,10.99789749,136.08,136.06,265.92]
[1745172005991,10.99789749,136.08,136.07,14.26]
[1745172007383,100.97634886,136.13,136.07,14.26]
[1745172007581,10.99789749,136.08,136.07,14.26]
[1745172015597,10.99789749,136.08,136.07,265.92]
[1745172025296,54.98948745,136.08,136.07,265.92]
[1745172026809,10.99789749,136.08,136.07,265.92]
[1745172027815,54.98948745,136.08,136.07,265.92]
[1745172029102,54.98948745,136.08,136.06,251.7]
[1745172029286,10.99789749,136.07,136.05,0.03]
[1745172029485,10.99789749,136.06,136.05,0.03]
[1745172030093,43.99158996,136.08,136.05,0.03]
[1745172032898,10.99789749,136.06,136.05,0.03]
[1745172035413,10.99789749,136.06,136.05,266.03]
[1745172045017,10.99789749,136.06,136.05,266.02]
[1745172045224,10.99789749,136.06,136.03,0.063]
[1745172045527,10.99789749,136.04,136.03,0.063]
[1745172051532,18.64964886,136.07,136.03,0.063]
[1745172051728,10.99789749,136.04,136.03,0.063]
[1745172055119,10.99789749,136.04,136.03,266.103]
[1745172084477,29.64754635,136.04,136.03,266.06]
[1745172084762,18.64964886,136.03,136.02,0.03]
[1745172084946,29.64754635,136.03,136.02,0.03]
[1745172085146,29.64754635,136.03,136.02,266.09]
[1745172093385,29.64754635,136.03,136.01,0.03]
[1745172093673,29.64754635,136.02,136.01,0.03]
[1745172094966,29.64754635,136.02,135.99,0.03]
[1745172095148,10.99789749,136.01,136.0,251.85]
[1745172095466,10.99789749,136.01,136.0,266.11]
[1745172096667,10.99789749,136.01,135.99,0.03]
[1745172096668,18.64964886,136.0,135.99,251.85]
[1745172096867,73.63913631,136.0,135.99,266.11]
[1745172102979,73.63913631,136.0,135.97,0.03]
[1745172103167,10.99789749,135.98,135.97,0.03]
[1745172103354,29.64754635,135.98,135.97,0.03]
[1745172105186,29.64754635,135.98,135.97,14.29]
[1745172118067,29.64754635,135.98,135.97,266.21]
[1745172118909,10.99789749,135.98,135.97,266.21]
[1745172119078,80.8,135.99,135.97,266.21]
[1745172119391,10.99789749,135.98,135.97,266.21]
[1745172126601,91.79789749,135.99,135.97,266.21]
[1745172126773,10.99789749,136.0,135.97,266.21]
[1745172127069,10.99789749,136.0,135.98,1.6386]
[1745172127711,26.063,136.05,135.98,7.981]
[1745172127903,0.063,136.05,135.98,7.981]
[1745172128119,10.99789749,136.04,135.98,7.981]
[1745172129105,10.99789749,136.03,135.98,7.981]
[1745172129400,10.99789749,136.01,135.98,7.981]
[1745172133500,10.99789749,136.02,135.98,7.981]
[1745172141214,10.99789749,136.03,135.98,7.981]
[1745172141709,10.99789749,136.04,135.98,7.981]
[1745172142101,10.99789749,136.03,135.98,7.981]
[1745172146723,10.99789749,136.04,135.98,7.981]
[1745172148020,0.063,136.05,136.02,1.508]
[1745172148200,0.063,136.05,136.03,20.4789]
[1745172155029,0.063,136.05,136.03,14.26]
[1745172157229,0.063,136.05,136.04,251.74]
[1745172158215,0.063,136.05,136.04,277.74]
[1745172170239,0.063,136.05,136.04,251.74]
[1745172190757,0.063,136.05,136.04,266.0]
[1745172237094,0.063,136.05,136.04,346.637]
[1745172237266,0.063,136.05,136.04,365.28664886]
[1745172237465,0.063,136.05,136.04,371.79534886]
[1745172239283,0.063,136.05,136.04,377.57686201]
[1745172240688,0.063,136.05,136.04,371.79534886]
[1745172240990,0.063,136.05,136.04,372.637]
[1745172246692,0.063,136.05,136.04,292.0]
[1745172250784,11.06089749,136.05,136.04,266.0]
[1745172250987,0.063,136.05,136.04,266.0]
[1745172255187,11.06089749,136.05,136.04,266.0]
[1745172258801,11.06089749,136.05,135.98,80.637]
[1745172258802,17.12109749,136.05,135.98,80.637]
[1745172259023,10.99789749,136.0,135.97,0.03]
[1745172259891,10.99789749,135.99,135.97,0.03]
[1745172260195,10.99789749,135.98,135.97,0.03]
[1745172261795,10.99789749,135.99,135.97,0.03]
[1745172261977,10.99789749,136.0,135.97,0.03]
[1745172265202,10.99789749,136.0,135.98,266.0]
[1745172268510,10.99789749,135.99,135.98,266.0]
[1745172270707,10.99789749,136.0,135.98,266.0]
[1745172271106,10.99789749,136.02,135.98,266.0]
[1745172271502,10.99789749,136.0,135.98,266.0]
[1745172273912,10.99789749,136.01,135.98,266.0]
[1745172274207,10.99789749,136.02,135.98,266.0]
[1745172275287,10.99789749,136.01,135.98,266.0]
[1745172277307,1.6131,136.04,135.98,266.0]
[1745172277491,10.99789749,136.01,135.98,266.0]
[1745172279819,18.64964886,136.03,135.98,266.0]
[1745172280017,10.99789749,135.99,135.98,266.0]
[1745172280704,10.99789749,136.0,135.98,266.0]
[1745172282822,10.99789749,135.99,135.98,266.0]
[1745172284721,1.6131,136.04,135.98,266.0]
[1745172285029,10.99789749,136.02,135.98,266.0]
[1745172285608,1.6131,136.04,135.98,266.0]
[1745172285800,10.99789749,136.02,135.98,266.0]
[1745172291500,10.99789749,136.01,135.98,266.0]
[1745172293025,10.99789749,136.0,135.98,266.0]
[1745172297520,10.99789749,135.99,135.98,266.0]
[1745172297711,10.99789749,136.0,135.98,266.0]
[1745172297909,10.99789749,135.99,135.98,266.0]
[1745172302611,18.64964886,136.03,135.98,266.0]
[1745172302812,10.99789749,136.01,135.98,266.0]
[1745172309739,10.99789749,136.0,135.98,266.0]
[1745172312441,10.99789749,135.99,135.98,266.0]
[1745172325428,10.99789749,135.99,135.98,251.76]
[1745172325642,29.64754635,135.99,135.98,14.26]
[1745172325846,29.64754635,135.99,135.97,0.03]
[1745172326047,10.99789749,135.98,135.97,0.03]
[1745172327257,18.64964886,135.97,135.96,0.03]
[1745172327551,29.64754635,135.97,135.96,0.03]
[1745172334581,10.99789749,135.97,135.96,0.03]
[1745172335264,10.99789749,135.97,135.96,266.21]
[1745172335660,10.99789749,135.97,135.96,14.26]
[1745172337269,29.64754635,135.97,135.96,14.26]
[1745172337965,10.99789749,135.97,135.96,14.26]
[1745172340582,10.99789749,135.97,135.96,266.18]
[1745172345693,29.64754635,135.97,135.96,266.18]
[1745172353477,10.99789749,135.97,135.96,266.18]
[1745172358010,11.06057095,135.97,135.96,266.18]
[1745172359591,0.063,136.03,135.96,359.40647095]
[1745172359785,0.063,136.03,135.99,11.06057095]
[1745172360410,0.063,136.03,135.98,11.06057095]
[1745172360614,0.063,136.03,135.99,11.06057095]
[1745172361105,11.12357095,136.03,135.98,11.06057095]
[1745172361314,0.063,136.03,135.99,11.06057095]
[1745172364099,11.12357095,136.03,135.99,11.06057095]
[1745172364922,11.12357095,136.03,135.97,26.0]
[1745172364923,0.063,136.03,136.0,11.06057095]
[1745172365113,0.063,136.03,136.01,26.84947095]
[1745172367926,0.063,136.03,136.02,11.06057095]
[1745172368128,0.063,136.03,136.02,37.06057095]
[1745172368430,0.063,136.03,136.02,136.34721981]
[1745172368612,0.063,136.06,136.04,26.0]
[1745172368818,0.063,136.06,136.04,37.06057095]
[1745172370021,1e-08,136.08,136.04,37.06057095]
[1745172370227,11.06057096,136.08,136.04,26.0]
[1745172371117,11.06057095,136.07,136.04,26.0]
[1745172373930,11.06057096,136.08,136.04,26.0]
[1745172375708,11.06057096,136.08,136.05,251.76]
[1745172375905,1e-08,136.08,136.06,14.24]
[1745172376113,11.06057095,136.07,136.06,14.24]
[1745172377607,1e-08,136.08,136.06,14.24]
[1745172378026,11.06057096,136.08,136.06,14.24]
[1745172380333,11.06057095,136.07,136.06,14.24]
[1745172390039,29.71021981,136.07,136.06,14.24]
[1745172390626,29.71021981,136.07,136.06,14.26]
[1745172390838,18.64964886,136.06,136.05,251.76]
[1745172391136,29.71021981,136.06,136.05,266.02]
[1745172395219,11.06057095,136.06,136.05,266.02]
[1745172400647,1e-08,136.08,136.05,266.02]
[1745172400832,11.06057095,136.07,136.05,266.02]
[1745172402251,11.06057095,136.06,136.05,266.02]
[1745172402555,11.06057095,136.07,136.05,266.02]
[1745172408461,1e-08,136.08,136.06,1.5015]
[1745172409640,1e-08,136.08,136.07,11.06057095]
[1745172409848,1e-08,136.08,136.07,17.39917095]
[1745172410163,1e-08,136.08,136.07,124.03617095]
[1745172410449,0.063,136.09,136.08,46.15114886]
[1745172410658,0.063,136.11,136.08,57.21171981]
[1745172410847,0.063,136.11,136.1,37.06057095]
[1745172411044,0.063,136.11,136.1,51.32057095]
[1745172412463,0.063,136.11,136.1,58.91667095]
[1745172413254,0.063,136.11,136.1,158.20331981]
[1745172414069,0.063,136.12,136.11,18.64964886]
[1745172414363,0.063,136.12,136.11,110.34721981]
[1745172414565,0.063,136.12,136.11,91.69757095]
[1745172417535,0.063,136.12,136.11,117.69757095]
[1745172420777,0.063,136.12,136.11,106.637]
[1745172421277,0.063,136.12,136.11,117.69757095]
[1745172422072,0.063,136.12,136.11,358.237]
[1745172423568,0.063,136.12,136.11,369.29757095]
[1745172429680,0.063,136.12,136.11,387.94721981]
[1745172429890,0.063,136.15,136.13,44.64964886]
[1745172430182,0.063,136.15,136.14,12.72467095]
[1745172432862,0.063,136.15,136.14,31.37431981]
[1745172433369,0.063,136.15,136.14,112.01131981]
[1745172433669,0.063,136.15,136.14,121.01340042]
[1745172439689,0.063,136.15,136.14,112.01131981]
[1745172440688,0.063,136.15,136.14,126.25131981]
[1745172445392,0.063,136.15,136.14,377.73131981]
[1745172450789,0.063,136.15,136.14,376.06721981]
[1745172463901,0.063,136.15,136.14,385.06930042]
[1745172464405,0.063,136.15,136.14,393.73702052]
[1745172464587,0.063,136.16,136.15,93.12260432]
[1745172465277,0.063,136.16,136.15,344.60260432]
[1745172465903,0.063,136.18,136.17,99.22364886]
[1745172466115,0.063,136.18,136.17,119.28630042]
[1745172467307,0.063,136.19,136.17,119.28630042]
[1745172468224,0.063,136.19,136.18,11.06057095]
[1745172469530,0.063,136.19,136.18,91.63457095]
[1745172471030,0.063,136.26,136.2,44.64964886]
[1745172471334,7.9112,136.29,136.21,18.64964886]
[1745172471526,7.9112,136.29,136.25,11.06057095]
[1745172471702,18.97177095,136.29,136.25,80.574]
[1745172474126,7.9112,136.29,136.25,91.63457095]
[1745172474428,18.97177095,136.29,136.25,80.574]
[1745172475125,18.97177095,136.29,136.26,265.6]
[1745172477924,11.06057095,136.27,136.26,265.6]
[1745172478324,11.06057095,136.28,136.26,265.6]
[1745172479535,18.97177095,136.29,136.26,265.6]
[1745172481144,1.589,136.29,136.26,265.6]
[1745172481444,0.06299769,136.29,136.26,265.6]
[1745172481841,1e-08,136.29,136.26,265.6]
[1745172482224,10.32012884,136.29,136.26,265.6]
[1745172482526,1.5997,136.32,136.26,357.23457095]
[1745172482845,11.06057095,136.29,136.26,346.174]
[1745172484344,11.06057095,136.28,136.26,265.6]
[1745172485939,11.06057095,136.27,136.26,265.6]
[1745172486823,29.71021981,136.27,136.26,251.38]
[1745172487020,11.06057095,136.27,136.26,14.22]
[1745172487225,18.64964886,136.26,136.19,80.574]
[1745172487446,11.06057095,136.2,136.16,80.574]
[1745172487741,11.06057095,136.19,136.18,26.0]
[1745172488246,11.06057095,136.2,136.18,26.0]
[1745172488450,11.06057095,136.19,136.18,26.0]
[1745172488650,11.06057095,136.19,136.16,80.574]
[1745172488951,11.06057095,136.18,136.16,106.574]
[1745172489448,11.06057095,136.19,136.16,106.574]
[1745172489837,11.06057095,136.2,136.16,106.574]
[1745172492429,1.6442,136.23,136.19,26.0]
[1745172492736,10.44082737,136.2,136.19,26.0]
[1745172492937,10.44082737,136.2,136.16,91.63457095]
[1745172493147,11.06057095,136.21,136.19,26.0]
[1745172493946,11.06057095,136.21,136.17,26.0]
[1745172495240,11.06057095,136.21,136.18,265.62]
[1745172499557,11.06057095,136.2,136.18,265.62]
[1745172501856,6.2215,136.25,136.18,265.62]
[1745172502159,11.06057095,136.22,136.18,346.194]
[1745172506354,11.06057095,136.21,136.18,346.194]
[1745172510870,11.06057095,136.19,136.18,346.194]
[1745172511654,11.06057095,136.2,136.18,346.194]
[1745172516979,11.06057095,136.21,136.18,346.194]
[1745172521284,6.2215,136.25,136.18,346.194]
[1745172521285,11.06057095,136.19,136.18,265.62]
[1745172539238,1.5154,136.22,136.18,265.62]
[1745172539700,11.06057095,136.19,136.18,265.62]
[1745172552630,50.4163838,136.24,136.18,265.62]
[1745172552927,11.06057095,136.22,136.18,346.194]
[1745172555830,11.06057095,136.21,136.18,346.194]
[1745172556028,11.06057095,136.21,136.18,265.62]
[1745172557238,11.06057095,136.19,136.18,265.62]
[1745172557450,11.06057095,136.19,136.18,251.4]
[1745172557618,11.06057095,136.19,136.18,265.62]
[1745172567623,11.06057095,136.21,136.18,265.62]
[1745172567825,10.76470972,136.21,136.18,265.62]
[1745172568044,11.06057095,136.22,136.18,265.62]
[1745172568248,0.03,136.26,136.19,1.6604]
[1745172568550,11.06057095,136.23,136.19,82.3604]
[1745172569273,11.06057095,136.22,136.19,82.3604]
[1745172569436,11.06057095,136.23,136.19,82.3604]
[1745172573268,11.06057095,136.22,136.19,82.3604]
[1745172573734,11.06057095,136.21,136.19,82.3604]
[1745172573943,11.06057095,136.2,136.19,80.7]
[1745172578858,11.06057095,136.21,136.19,80.7]
[1745172587466,11.06057095,136.21,136.2,14.22]
[1745172592354,11.06057095,136.21,136.2,265.68]
[1745172594471,1.5404,136.25,136.2,265.68]
[1745172594660,11.06057095,136.24,136.2,265.68]
[1745172598455,11.06057095,136.24,136.2,346.38]
[1745172600566,0.03,136.26,136.2,346.38]
[1745172600776,11.06057095,136.25,136.2,346.38]
[1745172601879,11.06057095,136.24,136.2,346.38]
[1745172602176,0.03,136.28,136.27,46.16014886]
[1745172602347,0.03,136.35,136.32,26.0]
[1745172602554,0.03,136.35,136.33,25.28057095]
[1745172603372,0.03,136.35,136.33,14.22]
[1745172603562,0.03,136.35,136.33,25.28057095]
[1745172605161,0.03,136.35,136.33,276.64057095]
[1745172605376,0.03,136.35,136.33,265.58]
[1745172605579,0.03,136.35,136.33,276.64057095]
[1745172606263,0.03,136.35,136.33,265.58]
[1745172607280,0.03,136.35,136.33,346.28]
[1745172607856,11.09057095,136.34,136.33,265.58]
[1745172608178,29.74021981,136.34,136.33,265.52]
[1745172608366,73.98250361,136.34,136.27,80.7]
[1745172608569,11.06057095,136.28,136.27,80.7]
[1745172609254,11.06057095,136.28,136.24,7.607]
[1745172609467,11.06057095,136.25,136.22,80.7]
[1745172609760,11.06057095,136.26,136.22,80.7]
[1745172610170,11.06057095,136.27,136.22,80.7]
[1745172610363,11.06057095,136.27,136.22,91.76057095]
[1745172610758,11.06057095,136.27,136.22,80.7]
[1745172610958,11.06057095,136.27,136.22,91.76057095]
[1745172612882,26.03,136.34,136.25,26.0]
[1745172613085,11.06057095,136.3,136.25,106.7]
[1745172613293,26.03,136.34,136.25,106.7]
[1745172613592,11.06057095,136.3,136.25,117.76057095]
[1745172613790,11.06057095,136.31,136.25,117.76057095]
[1745172615184,11.06057095,136.31,136.26,265.54]
[1745172615383,11.06057095,136.3,136.26,265.54]
[1745172616582,11.06057095,136.28,136.26,265.54]
[1745172618398,11.06057095,136.27,136.26,265.54]
[1745172621906,44.2422838,136.32,136.26,265.54]
[1745172622079,11.06057095,136.29,136.26,346.24]
[1745172622278,11.06057095,136.28,136.26,346.24]
[1745172622483,18.67964886,136.34,136.26,346.24]
[1745172622690,11.06057095,136.28,136.26,346.24]
[1745172627701,11.06057095,136.27,136.26,346.24]
[1745172629806,11.06057095,136.27,136.26,265.7]
[1745172630411,11.06057095,136.27,136.26,251.32]
[1745172630578,11.06057095,136.27,136.26,265.7]
[1745172631411,11.06057095,136.27,136.26,251.32]
[1745172631613,11.06057095,136.27,136.26,265.7]
[1745172632588,11.06057095,136.27,136.26,251.32]
[1745172632991,11.06057095,136.27,136.26,265.7]
[1745172633495,11.06057095,136.28,136.26,265.7]
[1745172636310,11.06057095,136.27,136.26,265.7]
[1745172636889,44.2422838,136.32,136.26,265.7]
[1745172637192,11.06057095,136.27,136.26,265.7]
[1745172637789,11.06057095,136.28,136.26,265.7]
[1745172637989,11.06057095,136.28,136.27,14.38]
[1745172638589,11.06057095,136.29,136.27,14.38]
[1745172642491,11.06057095,136.28,136.27,14.38]
[1745172642790,11.06057095,136.28,136.27,265.7]
[1745172652313,11.06057095,136.29,136.27,265.7]
[1745172655424,11.06057095,136.29,136.28,14.38]
[1745172658197,18.64964886,136.28,136.22,80.7]
[1745172658401,11.06057095,136.23,136.22,80.7]
[1745172659127,18.64964886,136.28,136.22,80.7]
[1745172659348,18.64964886,136.29,136.22,80.7]
[1745172659632,11.06057095,136.26,136.22,80.7]
[1745172660327,11.06057095,136.25,136.22,80.7]
[1745172661121,11.06057095,136.24,136.22,80.7]
[1745172661832,11.06057095,136.23,136.22,80.7]
[1745172663337,11.06057095,136.24,136.22,80.7]
[1745172665225,11.06057095,136.24,136.23,265.66]
[1745172668619,11.06057095,136.25,136.23,265.66]
[1745172669421,11.06057095,136.25,136.23,251.36]
[1745172669639,11.06057095,136.24,136.23,251.36]
[1745172669842,11.06057095,136.24,136.23,265.66]
[1745172672633,11.06057095,136.24,136.23,251.36]
[1745172672955,11.06057095,136.24,136.23,265.66]
[1745172674552,11.06057095,136.24,136.23,251.36]
[1745172674721,11.06057095,136.24,136.23,265.66]
[1745172676161,44.64964886,136.29,136.23,251.36]
[1745172676344,11.06057095,136.25,136.24,14.3]
[1745172683563,11.06057095,136.26,136.24,14.3]
[1745172683955,11.06057095,136.26,136.25,251.38]
[1745172688666,11.06057095,136.26,136.25,265.68]
[1745172728201,44.64964886,136.29,136.25,265.68]
[1745172728376,11.06057095,136.26,136.25,265.68]
[1745172729999,26.0,136.29,136.25,265.68]
[1745172730176,37.06057095,136.29,136.25,265.68]
[1745172730577,11.06057095,136.28,136.25,265.68]
[1745172735382,11.06057095,136.27,136.25,265.68]
[1745172741608,11.06057095,136.26,136.25,265.68]
[1745172751404,11.06057095,136.26,136.25,251.38]
[1745172751710,11.06057095,136.26,136.25,265.6]
[1745172767826,44.64964886,136.29,136.25,265.6]
[1745172768025,11.06057095,136.26,136.25,265.6]
[1745172785052,11.06057095,136.27,136.25,265.6]
[1745172787645,44.64964886,136.29,136.25,265.6]
[1745172787854,11.06057095,136.26,136.25,265.6]
[1745172790748,11.06057095,136.27,136.25,265.6]
[1745172791554,11.06057095,136.26,136.25,265.6]
[1745172804771,44.2722838,136.32,136.25,265.6]
[1745172805068,11.06057095,136.3,136.25,357.01777847]
[1745172805249,11.06057095,136.29,136.25,357.01777847]
[1745172805851,44.2722838,136.32,136.25,357.01777847]
[1745172806052,11.06057095,136.29,136.25,357.01777847]
[1745172812178,11.06057095,136.28,136.25,357.01777847]
[1745172815452,11.06057095,136.26,136.25,347.9097]
[1745172818373,11.06057095,136.27,136.25,347.9097]
[1745172820155,11.06057095,136.26,136.25,347.9097]
[1745172823781,11.06057095,136.27,136.25,347.9097]
[1745172827962,11.06057095,136.28,136.25,347.9097]
[1745172833274,11.06057095,136.29,136.25,347.9097]
[1745172833482,37.06057095,136.3,136.25,347.9097]
[1745172835485,37.06057095,136.3,136.25,358.97027095]
[1745172835786,37.06057095,136.3,136.25,347.9097]
[1745172836686,11.06057095,136.29,136.25,347.9097]
[1745172838472,11.06057095,136.3,136.25,347.9097]
[1745172843800,11.06057095,136.3,136.25,358.97027095]
[1745172846672,11.06057095,136.3,136.25,347.9097]
[1745172846995,11.06057095,136.3,136.25,358.97027095]
[1745172848263,11.06057095,136.29,136.25,347.9097]
[1745172857093,11.06057095,136.29,136.26,14.2]
[1745172861893,11.06057095,136.29,136.27,251.3]
[1745172866705,11.06057095,136.29,136.28,14.2]
[1745172870519,11.06057095,136.3,136.28,14.2]
[1745172870684,11.09057095,136.32,136.28,94.9]
[1745172871286,0.03,136.32,136.28,94.9]
[1745172874213,11.09057095,136.32,136.28,94.9]
[1745172875610,0.03,136.32,136.28,115.06864942]
[1745172877715,0.03,136.32,136.29,11.06057095]
[1745172880014,0.03,136.32,136.28,115.06864942]
[1745172880211,0.03,136.32,136.29,80.7]
[1745172881117,0.03,136.32,136.3,251.24]
[1745172882042,11.06057095,136.31,136.3,251.24]
[1745172893618,11.09057095,136.32,136.3,251.24]
[1745172893920,0.03,136.32,136.3,251.24]
[1745172897135,0.03,136.32,136.3,343.00057095]
[1745172897520,0.03,136.32,136.3,331.94]
[1745172900621,0.03,136.32,136.3,343.00057095]
[1745172901728,0.03,136.32,136.3,352.10864942]
[1745172902021,0.03,136.32,136.31,44.95579828]
[1745172902225,0.03,136.34,136.33,11.06057095]
[1745172902431,0.03,136.34,136.33,43.91021981]
[1745172903228,0.03,136.34,136.33,32.84964886]
[1745172903540,0.03,136.34,136.33,14.2]
[1745172906417,0.03,136.34,136.33,94.9]
[1745172906822,0.03,136.34,136.33,80.7]
[1745172907035,0.03,136.34,136.33,94.9]